[Event "USA Championship 2022"]
[Site "Saint Louis"]
[Date "2022.10.12"]
[Round "7.6"]
[White "Dominguez Perez, Leinier"]
[Black "Moradiabadi, Elshan"]
[Result "1-0"]
[WhiteElo "2747"]
[BlackElo "2534"]
[Annotator "TA"]
[PlyCount "34"]
[EventDate "2022.09.05"]
[EventType "tourn"]
[EventCountry "USA"]
[SourceTitle "playchess.com"]
[Source "ChessBase"]
[SourceQuality "1"]
[TimeControl "40/5400+30:1800+30"]

{[%evp 17,19,87,297,299]} 1. e4 {[%emt 0:00:03]} e5 {[%emt 0:00:05]} 2. Nf3 {[%emt 0:00:06]} Nf6 {[%emt 0:00:05]} 3. Nxe5 {[%emt 0:00:49]} d6 {[%emt 0:00:05]} 4. Nf3 {[%emt 0:00:06]} Nxe4 {[%emt 0:00:06]} 5. d4 {[%emt 0:01:04]} d5 {[%emt 0:00:08]} 6. Bd3 {[%emt 0:00:07]} Be7 {[%emt 0:00:13]} 7. O-O {[%emt 0:00:42]} Bf5 {[%emt 0:00:19]} 8. c4 {[%emt 0:04:31]} O-O {[%emt 0:07:44]} 9. cxd5 {[%emt 0:00:17]} Qxd5 $2 {[%emt 0:00:27] [#]} (9... Bf6 $16) 10. Bxe4 {[%emt 0:00:40] [#] C42: Petroff Defence: 3 Nxe5 and unusual White 3rd moves.} {Predecessor:} Bxe4 $146 11. Nc3 Bxf3 12. Nxd5 Bxd5 13. Bf4 c6 14. Re1 Bb4 15. Re3 Rd8 16. Qg4 Nd7 17. Bh6 g6 {1-0 (30) Baklan,V (2617)-Law,N (2208) Hoogeveen 2011} 1-0

[Event "USA Championship 2022"]
[Site "Saint Louis"]
[Date "2022.10.12"]
[Round "7.7"]
[White "Shankland, Sam"]
[Black "Sevian, Samuel"]
[Result "1/2-1/2"]
[ECO "C83"]
[WhiteElo "2712"]
[BlackElo "2684"]
[Annotator "TA"]
[PlyCount "103"]
[EventDate "2022.09.05"]
[EventType "tourn"]
[EventCountry "USA"]
[SourceTitle "playchess.com"]
[Source "ChessBase"]
[SourceQuality "1"]
[TimeControl "40/5400+30:1800+30"]

{[%evp 29,103,45,55,33,43,8,11,14,33,18,48,0,7,2,15,16,0,5,37,38,36,35,83,0,9,0,0,0,0,0,0,0,0,1,3,0,0,0,0,0,0,-8,-3,-69,-64,-75,-36,-36,-36,-36,-10,-36,-36,-36,-36,-36,-36,-36,-36,-36,0,0,0,0,0,0,0,0,0,0,0,0,0,0,0,0]} 1. e4 {[%emt 0:00:10]} e5 {[%emt 0:00:09]} 2. Nf3 {[%emt 0:00:05]} Nc6 {[%emt 0:00:07]} 3. Bb5 {[%emt 0:00:06][%cal Bf1b5,Bb5a4,Ba4b3][%mdl 32]} a6 {[%emt 0:00:22]} 4. Ba4 {[%emt 0:00:05]} Nf6 {[%emt 0:00:08]} 5. O-O {[%emt 0:00:06]} Nxe4 {[%emt 0:00:42]} 6. d4 {[%emt 0:00:06]} b5 {[%emt 0:00:07]} 7. Bb3 {[%emt 0:00:06]} d5 {[%emt 0:00:07]} 8. dxe5 {[%emt 0:00:04]} Be6 {[%emt 0:00:11]} 9. Nbd2 {[%emt 0:00:07]} Be7 {[%emt 0:02:18]} 10. c3 {[%emt 0:00:50]} O-O {[%emt 0:00:33]} 11. Bc2 {[%emt 0:00:06]} f5 {[%emt 0:00:07]} 12. Nb3 {[%emt 0:00:11]} Qd7 {[%emt 0:00:20]} 13. Nfd4 {[%emt 0:00:08]} Nxd4 {[%emt 0:00:10]} 14. Nxd4 {[%emt 0:00:06]} c5 {[%emt 0:00:05]} 15. Nxe6 {[%emt 0:00:06]} Qxe6 {[%emt 0:00:05]} 16. f3 {[%emt 0:00:05] C83: Open Ruy Lopez: 9 c3 Be7.} Ng5 {[%emt 0:00:09]} 17. Bf4 {[%emt 0:00:05]} Rad8 {[%emt 0:08:26] [#]} 18. Kh1 $146 {[%emt 0:00:12][%cal Ob2b4]} ({Predecessor:} 18. Qd2 Nf7 19. Rfe1 g6 20. a4 b4 21. cxb4 cxb4 22. Bb3 Bc5+ 23. Kh1 Rfe8 24. Rad1 {1-0 (31) Pourkashiyan,A (2322)-Tokhirjonova,G (2350) Chess.com INT 2021}) 18... Kh8 {[%emt 0:06:39]} 19. Qd2 {[%emt 0:00:53]} h6 {[%emt 0:04:35]} 20. h4 {[%emt 0:08:03]} Nh7 {[%emt 0:06:16]} 21. Bg3 {[%emt 0:00:34]} d4 $1 {[%emt 0:11:10]} 22. cxd4 $1 {[%emt 0:00:59]} Rxd4 {[%emt 0:00:08]} 23. Qe1 {[%emt 0:00:06]} h5 {[%emt 0:31:38]} 24. Bf2 {[%emt 0:11:37]} Rd5 {[%emt 0:02:19]} 25. f4 {[%emt 0:00:41]} c4 {[%emt 0:02:56]} (25... Rfd8 $14) 26. Qe2 {[%emt 0:11:04]} (26. b3 $16) 26... g6 {[%emt 0:00:35]} 27. Rfd1 {[%emt 0:01:39]} Rfd8 {[%emt 0:00:40]} 28. Rxd5 {[%emt 0:10:11]} Rxd5 {[%emt 0:00:29]} 29. a4 {[%emt 0:06:39]} Nf8 {[%emt 0:00:59]} 30. axb5 {[%emt 0:01:40]} axb5 {[%emt 0:00:03]} 31. Kh2 {[%emt 0:02:25]} Rd7 {[%emt 0:03:32]} 32. Rd1 {[%emt 0:06:05]} Qc6 {[%emt 0:00:51]} 33. Rxd7 {[%emt 0:12:44]} Qxd7 {[%emt 0:00:34]} 34. g3 {[%emt 0:01:55]} Ne6 {[%emt 0:00:55]} 35. Be3 {[%emt 0:01:35]} Kg7 {[%emt 0:02:26]} 36. b3 {[%emt 0:05:54]} (36. Bd1 $11) 36... c3 $15 {[%emt 0:03:27]} 37. Bd3 {[%emt 0:04:37]} Nd4 {[%emt 0:07:08]} 38. Bxd4 {[%emt 0:00:27]} Qxd4 {[%emt 0:00:01][%mdl 4096] Endgame KQB-KQB} 39. Bc2 {[%emt 0:06:08]} Bc5 {[%emt 0:07:12]} 40. Kh3 {[%emt 0:02:19]} Qd5 {[%emt 0:01:19]} 41. Qg2 {[%emt 0:32:53]} Qd7 {[%emt 0:10:53]} 42. Qf3 {[%emt 0:00:00]} b4 {[%emt 0:00:42]} 43. Bd3 {[%emt 0:00:00]} Be7 {[%emt 0:00:06]} 44. Bc2 {[%emt 0:00:00]} Qd2 {[%emt 0:01:33]} 45. Bd3 {[%emt 0:00:00] The position is equal.} c2 {[%emt 0:01:58]} 46. Qb7 $1 {[%emt 0:00:00]} c1=Q {[%emt 0:01:44] [#] ( -> ...Qc5)} 47. Qxe7+ {[%emt 0:00:00]} Kh6 {[%emt 0:00:06][%cal Rc1h1]} 48. Qf8+ {[%emt 0:00:00]} Kh7 {[%emt 0:00:03][%cal Rc1h1]} 49. Qe7+ {[%emt 0:00:00]} Kh6 {[%emt 0:00:04][%cal Rc1h1]} 50. Qf8+ {[%emt 0:00:00]} Kh7 {[%emt 0:00:04][%cal Rc1h1] [#]} 51. Qe7+ {[%emt 0:00:00]} Kh6 {[%emt 0:00:07][%cal Rc1h1]} 52. Qf8+ {[%emt 0:00:10] Weighted Error Value: White=0.09 (flawless) /Black=0.07 (flawless)} 1/2-1/2

[Event "USA Championship 2022"]
[Site "Saint Louis"]
[Date "2022.10.13"]
[Round "8.1"]
[White "Sevian, Samuel"]
[Black "Caruana, Fabiano"]
[Result "1/2-1/2"]
[ECO "E20"]
[WhiteElo "2684"]
[BlackElo "2763"]
[Annotator "TA"]
[PlyCount "93"]
[EventDate "2022.09.05"]
[EventType "tourn"]
[EventCountry "USA"]
[SourceTitle "playchess.com"]
[Source "ChessBase"]
[SourceQuality "1"]
[TimeControl "40/5400+30:1800+30"]

{[%evp 10,93,0,0,0,0,17,0,11,3,12,10,29,27,25,25,9,8,3,-16,0,-58,-62,-84,-105,-91,-96,-66,-60,-76,-56,-73,-62,-117,-73,-51,-51,-101,-62,-90,-94,-92,-89,-84,-89,-87,-87,-87,-90,-89,-89,-90,-80,-81,-70,-80,-80,-90,-90,-105,-105,-112,-112,-112,-90,-90,-90,-90,0,-105,0,0,0,0,0,0,0,0,0,0,0,0,0,0,0,0]} 1. d4 {[%emt 0:00:06]} Nf6 {[%emt 0:00:04]} 2. c4 {[%emt 0:00:10]} e6 {[%emt 0:00:05]} 3. Nc3 {[%emt 0:00:20]} Bb4 {[%emt 0:00:06]} 4. f3 {[%emt 0:00:22]} d5 {[%emt 0:02:50]} 5. a3 {[%emt 0:00:18]} Be7 {[%emt 0:00:40]} 6. e4 {[%emt 0:00:26]} dxe4 {[%emt 0:00:55] E20: Nimzo-Indian: 4 g3 and 4 f3.} 7. fxe4 {[%emt 0:00:14]} c5 {[%emt 0:00:05]} 8. d5 {[%emt 0:03:53]} exd5 {[%emt 0:00:21]} 9. exd5 {[%emt 0:00:07]} O-O {[%emt 0:00:11]} 10. Be2 $1 {[%emt 0:00:07] 10.Be2 scores better than 10.Nf3.} a6 {[%emt 0:03:44]} 11. Nf3 {[%emt 0:06:24]} Bd6 {[%emt 0:02:46]} 12. O-O {[%emt 0:04:34]} h6 {[%emt 0:00:42] [#]} 13. Ne1 $146 {[%emt 0:09:00]} ({Predecessor:} 13. h3 Bf5 14. Nh4 Bh7 15. Bd3 Bxd3 16. Qxd3 Nbd7 17. Nf5 Ne5 18. Qg3 Nh5 19. Qf2 {1-0 (25) Sabuk,P (2398)-Bartos,J (2156) Brno 2021}) 13... Nbd7 {[%emt 0:13:26][%cal Ob7b5]} 14. Nd3 {[%emt 0:12:15]} b5 {[%emt 0:22:23]} 15. cxb5 {[%emt 0:15:12]} (15. Bf4 $11 Bxf4 16. Nxf4 (16. Rxf4 Re8 $11)) 15... axb5 $15 {[%emt 0:04:40]} 16. Be3 {[%emt 0:26:57]} Re8 {[%emt 0:09:45]} 17. Bf2 {[%emt 0:02:16]} Rb8 {[%emt 0:06:35]} 18. Bf3 {[%emt 0:03:30]} b4 {[%emt 0:07:00]} 19. axb4 {[%emt 0:01:03]} c4 {[%emt 0:03:17]} 20. Nc5 {[%emt 0:00:05]} Rxb4 {[%emt 0:00:10]} 21. Nxd7 ({White should try} 21. N5e4 $15 Nxe4 22. Nxe4) 21... Nxd7 {[%cal Bf6d7,Bd7e5,Be5f3][%mdl 32]} 22. Ne4 {[%emt 0:01:03]} Be5 {[%emt 0:02:06]} 23. Bd4 {[%emt 0:02:27]} (23. Ra2 $1 $15) 23... Bb7 {[%emt 0:01:36]} 24. Qd2 {[%emt 0:05:25]} Bxd4+ {[%emt 0:04:00]} 25. Qxd4 {[%emt 0:00:01]} Ne5 {[%emt 0:00:08]} 26. Rad1 {[%emt 0:01:01]} Nxf3+ {[%emt 0:05:09]} (26... Rb5 {is interesting.} 27. Nc5 Ba8 28. Be4 Qd6) 27. Rxf3 {[%emt 0:03:05] [#] aiming for Rg3.} Qxd5 $1 {[%emt 0:00:47]} 28. Qxd5 {[%emt 0:00:03]} Bxd5 {[%emt 0:00:03]} 29. Rxd5 {[%emt 0:00:05] Strongly threatening Rd4.} Rxe4 $17 {[%emt 0:00:04][%mdl 4096] Endgame KRR-KRR} 30. Rd2 {[%emt 0:01:24]} Rb6 {[%emt 0:04:36]} 31. Rc2 {[%emt 0:00:31]} g5 {[%emt 0:01:03]} 32. h3 {[%emt 0:00:12]} Kg7 {[%emt 0:00:10]} 33. Rfc3 {[%emt 0:00:22] [#]} Rb4 $1 {[%emt 0:00:10]} 34. Kh2 {[%emt 0:01:13]} h5 {[%emt 0:00:05]} 35. b3 {[%emt 0:00:10]} cxb3 {[%emt 0:01:58] Threatens to win with ...b2.} 36. Rb2 {[%emt 0:00:01]} f5 {[%emt 0:02:51]} 37. Rbxb3 {[%emt 0:00:20]} Rxb3 {[%emt 0:00:06]} 38. Rxb3 {[%emt 0:00:02] KR-KR} Re6 {[%emt 0:00:14]} (38... h4 $17 39. Rb7+ Kg6 40. Rb6+ Kg7) 39. Rb4 {[%emt 0:01:16] [#]} (39. h4 $11) 39... Kf6 {[%emt 0:00:30]} (39... h4 $1 $17 40. Rb5 Kf6) 40. h4 $1 $11 {[%emt 0:02:52] The position is equal.} g4 {[%emt 0:02:10]} 41. Kg3 {[%emt 0:30:42]} Re2 {[%emt 0:31:14]} 42. Rb6+ {[%emt 0:00:19]} Ke5 {[%emt 0:00:24]} 43. Rb5+ {[%emt 0:00:08]} Ke4 {[%emt 0:00:51]} 44. Rb4+ {[%emt 0:00:10]} Ke5 {[%emt 0:00:21][%cal Of5f4]} 45. Rb5+ {[%emt 0:00:03]} Ke4 {[%emt 0:00:03] ( -> ...f4+)} 46. Rb4+ {[%emt 0:00:03]} Ke5 {[%emt 0:00:04][%cal Of5f4] White must now prevent ...f4+!} 47. Rb5+ {[%emt 0:00:23] Weighted Error Value: White=0.15 (very precise) /Black=0.10 (very precise)} 1/2-1/2

[Event "USA Championship 2022"]
[Site "Saint Louis"]
[Date "2022.10.13"]
[Round "8.2"]
[White "Yoo, Christopher Woojin"]
[Black "Xiong, Jeffery"]
[Result "0-1"]
[ECO "B12"]
[WhiteElo "2563"]
[BlackElo "2690"]
[Annotator "TA"]
[PlyCount "100"]
[EventDate "2022.09.05"]
[EventType "tourn"]
[EventCountry "USA"]
[SourceTitle "playchess.com"]
[Source "ChessBase"]
[SourceQuality "1"]
[TimeControl "40/5400+30:1800+30"]

{[%evp 9,100,15,6,18,12,-14,10,10,33,-4,-8,-7,57,-12,-12,-13,-11,-11,-11,-11,-6,-10,-8,-7,-6,-13,-8,-13,-8,-7,-14,-17,-11,-12,-18,-28,-37,-191,-172,-164,-154,-160,-154,-156,-158,-246,-241,-370,-365,-409,-397,-397,-382,-629,-618,-659,-655,-651,-618,-651,-645,-629,-628,-577,-575,-620,-712,-677,-660,-773,-779,-1098,-1140,-1089,-1098,-993,-1055,-1009,-997,-972,-950,-910,-879,-2808,-2758,-6614,-7616,-29973,-29974,-29979,-29978,-29978,-29950]} 1. e4 {[%emt 0:01:00]} c6 {[%emt 0:00:28]} 2. d4 {[%emt 0:00:18]} d5 {[%emt 0:00:13]} 3. f3 {[%emt 0:00:05]} Qb6 {[%emt 0:01:32]} 4. Nc3 {[%emt 0:01:17]} dxe4 {[%emt 0:03:22]} 5. fxe4 {[%emt 0:07:18]} e5 $1 {[%emt 0:01:05]} 6. Nf3 {[%emt 0:02:55] B12: Caro-Kann: Advance Variation.} exd4 {[%emt 0:04:52]} 7. Qxd4 {[%emt 0:00:29] [#]} Be6 $146 {[%emt 0:10:11]} ({Predecessor:} 7... Qxd4 8. Nxd4 Bc5 9. Nf5 g6 10. Be3 Bxe3 11. Nxe3 Be6 12. Nc4 Bxc4 13. Bxc4 Nd7 {½-½ (75) Benjamin,J (2575)-Kacheishvili,G (2606) ICC INT 2009}) 8. Bf4 {[%emt 0:11:36] The position is equal.} Ne7 {[%emt 0:07:52][%cal Bg8e7,Be7g6,Bg6e5][%mdl 32]} 9. Bd6 {[%emt 0:14:15]} Ng6 {[%emt 0:12:12]} 10. Bxf8 {[%emt 0:05:01]} Rxf8 {[%emt 0:03:31]} (10... Qxd4 $11 11. Nxd4 Rxf8) 11. O-O-O {[%emt 0:06:06]} (11. Qxg7 $14 Qxb2 12. Rb1) 11... Qxd4 $11 {[%emt 0:00:31]} 12. Nxd4 {[%emt 0:00:03]} Ne5 {[%emt 0:02:36]} 13. Nf5 {[%emt 0:01:10]} Bxf5 {[%emt 0:00:08]} 14. exf5 {[%emt 0:00:04]} Nbd7 {[%emt 0:00:09]} 15. Be2 {[%emt 0:00:48]} O-O-O {[%emt 0:01:10]} 16. g4 {[%emt 0:00:38]} Kc7 {[%emt 0:01:57]} 17. g5 {[%emt 0:04:24]} Rh8 {[%emt 0:12:44]} 18. h4 {[%emt 0:02:00]} h6 {[%emt 0:00:04]} 19. Ne4 {[%emt 0:00:41]} hxg5 {[%emt 0:00:10]} 20. hxg5 {[%emt 0:00:12]} Nb6 {[%emt 0:00:37]} 21. Rxh8 {[%emt 0:08:58]} Rxh8 {[%emt 0:00:11]} 22. f6 {[%emt 0:00:21]} g6 {[%emt 0:03:08]} 23. c4 $2 {[%emt 0:04:52] Now White is beyond hope.} (23. Re1 $15) 23... Nbxc4 $19 {[%emt 0:06:08]} ({Weaker is} 23... Rh2 24. Re1 $15) 24. Bxc4 {[%emt 0:00:06]} Nxc4 {[%emt 0:00:03][%mdl 4096] Endgame KRN-KRN} 25. Nc5 {[%emt 0:00:03] aiming for Rd7+.} Nd6 {[%emt 0:10:30]} 26. Re1 {[%emt 0:00:08] [#]} Re8 $1 {[%emt 0:03:12]} 27. Rxe8 {[%emt 0:01:21]} (27. Re7+ $17 {was called for.} Rxe7 28. fxe7) 27... Nxe8 $17 {[%emt 0:00:02] KN-KN} 28. Kd2 {[%emt 0:00:49]} (28. Ne6+ {was forced.} Kc8 29. Nf4) 28... b6 $19 {[%emt 0:00:42]} 29. Nd3 {[%emt 0:00:04]} Kd6 {[%emt 0:00:12] Inhibits Ne5.} 30. Ke3 {[%emt 0:07:40]} Nc7 {[%emt 0:00:23]} 31. Ke4 $2 {[%emt 0:01:42]} (31. Nf2 Ne6 32. Ne4+ Ke5 33. Kf3) 31... Ne6 {[%emt 0:00:11]} 32. Ne5 {[%emt 0:00:03]} Nxg5+ {[%emt 0:00:15]} 33. Kf4 {[%emt 0:00:03]} Ne6+ {[%emt 0:00:38]} 34. Ke4 {[%emt 0:00:03]} Nd8 {[%emt 0:00:51]} 35. Kf4 {[%emt 0:01:33]} Ke6 {[%emt 0:00:15]} 36. Ng4 {[%emt 0:00:03]} Nb7 {[%emt 0:00:15]} 37. Kg5 {[%emt 0:01:00]} Nc5 {[%emt 0:01:15]} 38. Nf2 {[%emt 0:00:19]} Nd7 {[%emt 0:00:32]} 39. Nd3 {[%emt 0:00:20]} Nxf6 {[%emt 0:00:31] White must now prevent ...Ne4+.} 40. Nb4 {[%emt 0:00:01]} c5 {[%emt 0:02:44]} 41. Nc6 {[%emt 0:30:04]} a5 {[%emt 0:31:33]} 42. Nd8+ {[%emt 0:00:12]} Ke7 {[%emt 0:00:03]} 43. Nc6+ {[%emt 0:00:03]} Kd7 {[%emt 0:00:15]} 44. Ne5+ {[%emt 0:00:06]} Ke6 {[%emt 0:00:03]} 45. Nc4 {[%emt 0:00:02]} Nd7 {[%emt 0:00:14]} 46. a4 {[%emt 0:00:12]} Kd5 {[%emt 0:02:35]} 47. b3 {[%emt 0:00:04]} Kd4 {[%emt 0:00:14] [#] ( -> ...Kd3)} 48. Nd6 {[%emt 0:00:05]} Kc3 {[%emt 0:00:12] Black mates.} 49. Nxf7 {[%emt 0:00:13]} Kxb3 {[%emt 0:00:07]} 50. Kf4 {[%emt 0:00:02]} Kxa4 {[%emt 0:00:27] Weighted Error Value: White=0.37/Black=0.06 (flawless)} 0-1

[Event "USA Championship 2022"]
[Site "Saint Louis"]
[Date "2022.10.13"]
[Round "8.3"]
[White "So, Wesley"]
[Black "Swiercz, Dariusz"]
[Result "1/2-1/2"]
[ECO "C54"]
[WhiteElo "2774"]
[BlackElo "2652"]
[Annotator "TA"]
[PlyCount "79"]
[EventDate "2022.09.05"]
[EventType "tourn"]
[EventCountry "USA"]
[SourceTitle "playchess.com"]
[Source "ChessBase"]
[SourceQuality "1"]
[TimeControl "40/5400+30:1800+30"]

{[%evp 16,79,23,26,19,26,22,20,21,17,20,14,14,2,14,0,9,-19,-16,-18,-29,-31,-31,-34,-36,-32,0,-6,-3,0,-7,-80,-38,-33,-16,-32,-16,-16,-18,-41,-19,-26,0,0,0,0,0,0,0,0,4,0,0,0,0,0,0,0,0,-4,0,0,0,-9,0,0]} 1. e4 {[%emt 0:00:09]} e5 {[%emt 0:00:52]} 2. Nf3 {[%emt 0:00:04]} Nc6 {[%emt 0:00:04]} 3. Bc4 {[%emt 0:00:10]} Nf6 {[%emt 0:00:04]} 4. d3 {[%emt 0:00:04]} Bc5 {[%emt 0:01:23]} 5. O-O {[%emt 0:00:31]} d6 {[%emt 0:01:14]} 6. c3 {[%emt 0:00:19]} a6 {[%emt 0:02:34]} 7. Re1 {[%emt 0:00:56]} O-O {[%emt 0:04:46]} 8. Bb3 {[%emt 0:01:21]} h6 {[%emt 0:00:40] was the old line (8...Ba7).} 9. Nbd2 {[%emt 0:00:09]} Be6 {[%emt 0:00:39] C54: Giuoco Piano: 4 c3 Nf6, main lines with 5 d4 and 5 d3.} 10. Bxe6 {[%emt 0:01:26]} fxe6 {[%emt 0:00:53]} 11. b4 {[%emt 0:00:09]} Ba7 {[%emt 0:00:18]} 12. Nf1 {[%emt 0:00:03]} (12. h3 {keeps more tension.} Nh5 13. a4 Qf6 14. Nf1) 12... Ne7 {[%emt 0:06:54][%cal Bc6e7,Be7g6,Bg6f4][%mdl 32] [#]} (12... Nh5 {feels hotter.} 13. a4 Qf6 14. h3 Ne7) 13. Be3 $146 {[%emt 0:09:50]} (13. a4 {is more complex.} Qe8 14. Rb1 Nh5 15. Ng3) ({Predecessor:} 13. a4 Ng6 14. Ra2 Rc8 15. h3 Rf7 16. Rc2 Qd7 17. Rb2 b5 18. Ng3 Rcf8 19. Ra2 {½-½ (27) Pagaime,A (1848)-Atkins,A (1500) ICCF email 2020}) 13... Bxe3 {[%emt 0:00:56]} 14. Rxe3 {[%emt 0:00:05]} Ng6 {[%emt 0:01:02]} 15. h3 {[%emt 0:02:32]} Nf4 {[%emt 0:10:18]} 16. Kh2 {[%emt 0:06:07]} g5 {[%emt 0:01:05]} 17. g3 {[%emt 0:06:03]} g4 {[%emt 0:04:42]} 18. Ng1 {[%emt 0:16:06]} Nxh3 $1 {[%emt 0:00:50]} 19. Nxh3 {[%emt 0:00:05]} gxh3 {[%emt 0:00:03]} 20. Kxh3 {[%emt 0:00:02][%cal Bh2h3,Bh3g2,Bg2f1,Bf1e1][%mdl 32]} Qe8 {[%emt 0:07:50]} (20... h5 $5 {[%cal Rf6g4]} 21. Rf3 Ng4 $11) 21. Qe2 {[%emt 0:07:32]} Qg6 {[%emt 0:23:12]} (21... a5 {looks sharper.} 22. Rf3 b5 23. a3 Qg6) 22. Nd2 {[%emt 0:08:49]} h5 {[%emt 0:02:56][%cal Bh6h5,Bh5h4,Bh4h3][%mdl 32]} 23. Rg1 {[%emt 0:08:17]} (23. Kg2 $1 $11 {keeps the balance.}) 23... Rf7 {[%emt 0:05:30][%cal Bf8f7,Bf7h7,Bh7h4,Bh4g4,Bg4g5][%mdl 32]} 24. Rf3 {[%emt 0:02:30]} Raf8 {[%emt 0:01:02]} 25. Kg2 {[%emt 0:01:44]} h4 {[%emt 0:06:24]} 26. Kf1 {[%emt 0:01:54]} h3 {[%emt 0:02:00]} 27. Rh1 {[%emt 0:00:06]} Rh7 {[%emt 0:03:11]} 28. Ke1 {[%emt 0:05:15][%cal Og3g4]} Rff7 {[%emt 0:05:53]} 29. g4 {[%emt 0:06:37] The position is equal.} h2 {[%emt 0:01:10]} (29... Nxg4 $2 30. Rg3 Rf4 31. f3 $18) 30. Nf1 {[%emt 0:04:05]} Rh4 {[%emt 0:05:57]} (30... Qxg4 $2 31. Rg3 Qxg3 32. fxg3 $18) 31. Rxh2 {[%emt 0:06:38]} Rxg4 {[%emt 0:00:24]} 32. Rfh3 {[%emt 0:01:18]} Rh7 {[%emt 0:00:54]} 33. Qe3 {[%emt 0:02:54]} Rxh3 {[%emt 0:00:41]} 34. Qxh3 {[%emt 0:00:03]} Kf7 {[%emt 0:00:09]} 35. f3 {[%emt 0:02:32]} Rg5 {[%emt 0:00:17]} 36. Qh8 {[%emt 0:00:30] [#] Qd8 is the strong threat.} Qg8 {[%emt 0:00:41] Against Qd8} 37. Qh6 {[%emt 0:01:13]} Qg6 {[%emt 0:00:31]} 38. Qh8 {[%emt 0:00:04] Strongly threatening Qc8.} Qg8 {[%emt 0:00:03] Inhibits Qc8.} 39. Qh6 {[%emt 0:00:04]} Qg6 {[%emt 0:00:08]} 40. Qh8 {[%emt 0:00:23] Weighted Error Value: White=0.07 (flawless) /Black=0.06 (flawless)} 1/2-1/2

[Event "USA Championship 2022"]
[Site "Saint Louis"]
[Date "2022.10.13"]
[Round "8.4"]
[White "Liang, Awonder"]
[Black "Shankland, Sam"]
[Result "1/2-1/2"]
[ECO "B53"]
[WhiteElo "2608"]
[BlackElo "2712"]
[Annotator "TA"]
[PlyCount "78"]
[EventDate "2022.09.05"]
[EventType "tourn"]
[EventCountry "USA"]
[SourceTitle "playchess.com"]
[Source "ChessBase"]
[SourceQuality "1"]
[TimeControl "40/5400+30:1800+30"]

{[%evp 9,78,-8,0,-3,16,24,10,7,26,28,21,21,41,40,33,43,58,11,12,8,7,17,17,18,7,12,13,10,10,12,10,7,12,0,16,16,24,2,11,9,22,0,0,0,0,0,0,0,0,0,0,0,88,88,88,88,88,88,88,0,0,0,0,0,0,0,0,0,0,0,0]} 1. e4 {[%emt 0:00:02][%cal Be2e4,Be4e5][%mdl 32]} c5 {[%emt 0:00:11]} 2. Nf3 {[%emt 0:00:08]} d6 {[%emt 0:00:04]} 3. d4 {[%emt 0:00:17]} cxd4 {[%emt 0:00:03]} 4. Qxd4 {[%emt 0:00:06]} Nf6 {[%emt 0:00:10]} 5. e5 {[%emt 0:00:14]} Nc6 {[%emt 0:00:41]} 6. Qa4 {[%emt 0:00:10] B53: Sicilian: 2...d6: Lines with Qxd4.} Nd5 {[%emt 0:07:01]} 7. Bb5 {[%emt 0:01:40]} Bd7 {[%emt 0:02:17]} 8. exd6 {[%emt 0:11:01]} a6 {[%emt 0:05:15] [#]} 9. Be2 $146 {[%emt 0:04:32]} ({Predecessor:} 9. Bxc6 Bxc6 10. Qe4 Qxd6 11. O-O Nb4 12. Qe2 Bxf3 13. gxf3 Qg6+ 14. Kh1 Nxc2 15. Nc3 Nxa1 {0-1 (21) Mori,R (512)-Kolanek,R (1963) LSS email 2011}) 9... e6 {[%emt 0:02:49]} 10. c4 {[%emt 0:08:12]} b5 {[%emt 0:01:19]} 11. Qd1 {[%emt 0:00:02]} ({Of course not} 11. cxb5 axb5 12. Qd1 b4 $11) 11... bxc4 {[%emt 0:00:08]} 12. Nc3 {[%emt 0:07:18]} Ncb4 {[%emt 0:16:36]} 13. Bxc4 {[%emt 0:07:14]} (13. Ne4 $1 $14 {was preferrable.}) 13... Bxd6 $11 {[%emt 0:01:42]} 14. Bxd5 {[%emt 0:02:17]} Nxd5 {[%emt 0:04:39]} ({Resist} 14... exd5 15. a3 Qe7+ 16. Be3 $16) 15. Nxd5 {[%emt 0:00:04]} exd5 {[%emt 0:00:06]} 16. O-O {[%emt 0:00:14]} Be6 {[%emt 0:02:27] [#]} 17. Bf4 $1 {[%emt 0:00:54]} O-O {[%emt 0:00:46]} 18. Bxd6 {[%emt 0:00:13]} Qxd6 {[%emt 0:00:01]} 19. Nd4 {[%emt 0:04:32]} a5 {[%emt 0:02:27]} 20. Re1 {[%emt 0:02:18]} Bd7 {[%emt 0:00:51]} 21. Qd3 {[%emt 0:03:57]} Rab8 {[%emt 0:02:43]} 22. b3 {[%emt 0:00:51]} g6 {[%emt 0:02:08]} 23. Qg3 {[%emt 0:02:25]} Qxg3 {[%emt 0:02:03]} 24. hxg3 {[%emt 0:00:07]} a4 {[%emt 0:01:35]} 25. Rac1 {[%emt 0:01:07]} axb3 {[%emt 0:00:45]} 26. axb3 {[%emt 0:00:02]} Rb4 {[%emt 0:01:30]} 27. Red1 {[%emt 0:00:08]} Rfb8 {[%emt 0:01:56]} 28. f3 {[%emt 0:01:20]} h5 {[%emt 0:03:15]} 29. Rc7 {[%emt 0:09:09]} Be6 {[%emt 0:02:08]} 30. Rc6 {[%emt 0:03:06]} Rxd4 {[%emt 0:02:14]} 31. Rxd4 $16 {[%emt 0:00:04] aiming for b4.} Rxb3 $11 {[%emt 0:00:05][%mdl 4096] Endgame KRR-KRB} 32. Rc5 {[%emt 0:00:11] White is more active.} Rb1+ {[%emt 0:00:29]} 33. Kh2 {[%emt 0:00:01]} Kg7 {[%emt 0:00:14]} 34. Rcxd5 {[%emt 0:00:06]} (34. Rc3 $16) 34... Bxd5 {[%emt 0:00:04] The position is equal.} 35. Rxd5 $16 {[%emt 0:00:04] KR-KR} Ra1 {[%emt 0:00:02]} 36. Rb5 {[%emt 0:00:05]} Rc1 {[%emt 0:00:04]} 37. Rd5 {[%emt 0:00:03]} Ra1 {[%emt 0:00:03]} 38. Rb5 {[%emt 0:00:04]} Rc1 {[%emt 0:00:04]} 39. Rd5 {[%emt 0:00:03]} Ra1 {[%emt 0:00:13] Weighted Error Value: White=0.07 (flawless) /Black=0.10 (very precise)} 1/2-1/2